bitfinex-derivatives/quotes_ETHF0:USTF0_20251211
["timestamp","ask_amount","ask_price","bid_price","bid_amount"]
[1765434741825,9.018,3206.5,3206.4,6.5068]
[1765434742025,9.018,3206.5,3206.4,6.66272]
[1765434742830,9.018,3206.5,3206.4,6.66555762]
[1765434743225,9.018,3206.5,3206.4,10.07805762]
[1765434743426,9.018,3206.5,3206.4,6.87225762]
[1765434743729,9.018,3206.5,3206.1,0.00467873]
[1765434743730,6.898,3206.2,3206.1,0.00467873]
[1765434744938,6.898,3206.2,3206.1,0.00789475]
[1765434745431,6.898,3206.2,3206.1,0.16383475]
[1765434747330,6.898,3206.2,3206.1,3.46283475]
[1765434747532,6.898,3206.2,3206.1,0.16383475]
[1765434749135,6.898,3206.2,3206.1,6.66333475]
[1765434749835,6.898,3206.2,3206.1,3.46283475]
[1765434750332,2.12,3206.5,3206.4,0.15592]
[1765434750633,8.6134,3206.5,3206.4,0.14992]
[1765434750836,8.6134,3206.5,3206.4,0.14192]
[1765434751131,8.6134,3206.5,3206.4,3.2754]
[1765434751331,8.6134,3206.5,3206.4,5.97798224]
[1765434751528,8.6134,3206.5,3206.4,6.13390224]
[1765434751830,5.3261,3206.5,3206.4,6.13390224]
[1765434752130,2.12,3206.5,3206.4,6.13390224]
[1765434752338,5.3261,3206.5,3206.4,6.13390224]
[1765434752634,5.3261,3206.5,3206.4,5.63390224]
[1765434753141,2.12,3206.5,3206.4,7.2767456]
[1765434753631,3.21075414,3206.8,3206.7,6.63181]
[1765434754628,6.49805414,3206.8,3206.7,0.15591]
[1765434754834,6.49805414,3206.8,3206.7,6.63181]
[1765434755136,6.49805414,3206.8,3206.7,6.62571]
[1765434755434,0.00465414,3206.8,3206.7,6.61171]
[1765434755735,3.2111186,3207.1,3207.0,6.63179]
[1765434755927,5.3261,3207.5,3207.4,6.63177]
[1765434756128,8.5278,3208.0,3207.9,3.42925]
[1765434756330,8.5278,3208.0,3207.9,0.15385]
[1765434756631,8.5278,3208.0,3207.9,0.15185]
[1765434756836,8.5221,3207.5,3207.4,6.4832]
[1765434757331,8.52431322,3207.5,3207.4,5.9832]
[1765434757729,8.52431322,3207.5,3207.4,6.13907]
[1765434757932,8.52431322,3207.5,3207.4,2.86367]
[1765434758134,8.52431322,3207.5,3207.4,9.33957]
[1765434758332,8.52431322,3207.5,3207.4,8.83957]
[1765434758939,5.23701322,3207.5,3207.4,8.83957]
[1765434759139,2.03091322,3207.5,3207.4,8.83957]
[1765434759437,2.03091322,3207.5,3207.4,10.48241336]
[1765434759834,0.00221322,3207.5,3207.4,10.48241336]
[1765434760739,0.00221322,3207.5,3207.4,11.48241336]
[1765434761034,5.23701322,3207.5,3207.4,11.48241336]
[1765434761235,8.52431322,3207.5,3207.4,5.07411336]
[1765434761436,11.73211322,3207.5,3207.4,0.15587]
[1765434761645,11.73211322,3207.5,3207.4,0.14567]
[1765434761934,6.4934,3207.1,3207.0,3.2078]
[1765434762238,6.4934,3207.1,3207.0,3.36369]
[1765434762438,6.4934,3207.1,3207.0,0.15589]
[1765434762637,6.4934,3207.1,3206.6,3.2078]
[1765434762841,6.4934,3206.7,3206.6,9.83961]
[1765434764438,6.4934,3206.7,3206.6,3.43131]
[1765434765339,6.4934,3206.7,3206.6,6.63181]
[1765434765545,6.4934,3206.7,3206.6,0.15591]
[1765434765737,6.4934,3206.7,3206.6,3.43131]
[1765434765938,6.4934,3206.7,3206.6,6.63181]
[1765434766135,8.5221,3207.0,3206.9,2.9213]
[1765434766341,8.5221,3207.0,3206.9,6.1218]
[1765434766643,8.5221,3207.0,3206.9,6.1138]
[1765434766844,8.5221,3207.0,3206.9,2.9053]
[1765434767140,8.5221,3207.0,3206.4,1.6449256]
[1765434767345,11.7299,3207.0,3206.4,1.6449256]
[1765434767540,11.7299,3207.0,3206.9,0.1559]
[1765434767843,11.7299,3207.0,3206.9,0.1379]
[1765434768148,11.7299,3207.0,3206.9,0.1339]
[1765434768340,11.7299,3207.0,3206.9,0.1259]
[1765434768745,11.7299,3207.0,3206.9,0.1179]
[1765434768945,11.7299,3207.0,3206.9,0.1099]
[1765434769343,8.5238,3207.0,3206.4,0.00208224]
[1765434769646,8.5221,3206.5,3206.4,0.00208224]
[1765434770335,8.5221,3206.5,3206.4,6.47798224]
[1765434770535,5.2348,3206.5,3206.4,6.63390224]
[1765434770742,8.5221,3206.5,3206.4,6.63390224]
[1765434770941,8.5221,3206.5,3206.4,6.61790224]
[1765434771242,6.4934,3206.9,3206.8,3.4313]
[1765434771743,6.4934,3206.9,3206.8,3.4213]
[1765434771942,6.4934,3206.9,3206.8,6.61856997]
[1765434772137,8.4426,3207.0,3206.9,6.6318]
[1765434772342,11.7299,3207.0,3206.9,6.6238]
[1765434772647,11.7299,3207.0,3206.9,3.4133]
[1765434772842,2.0287,3207.0,3206.9,6.6078]
[1765434773147,9.7012,3207.4,3207.3,0.15588]
[1765434773349,9.7012,3207.4,3207.3,0.15288]
[1765434773737,9.7012,3207.4,3206.8,0.00276997]
[1765434773942,9.7012,3207.4,3207.3,3.2754]
[1765434774249,9.7012,3207.4,3206.6,4.85064336]
[1765434774645,9.7012,3207.4,3207.3,3.43128]
[1765434774947,9.7012,3207.4,3207.3,2.93128]
[1765434775351,9.7012,3207.4,3207.3,2.43128]
[1765434775543,9.7012,3207.4,3207.3,2.57986]
[1765434776749,9.7012,3207.4,3207.3,0.14688]
[1765434777150,9.7012,3207.4,3207.3,0.13688]
[1765434777451,9.7012,3207.4,3207.3,0.12888]
[1765434777646,9.7012,3207.4,3207.3,0.12088]
[1765434777846,9.7012,3207.4,3207.3,0.11288]
[1765434778247,9.7012,3207.4,3207.3,0.10888]
[1765434778449,9.7012,3207.4,3207.3,0.09888]
[1765434778644,9.7012,3207.4,3207.3,0.09288]
[1765434778948,9.7012,3207.4,3207.3,0.08488]
[1765434779145,9.7012,3207.4,3207.3,0.07888]
[1765434779546,9.7012,3207.4,3207.3,0.07088]
[1765434779748,9.7012,3207.4,3207.3,0.06288]
[1765434779949,9.7012,3207.4,3206.6,4.85064336]
[1765434780659,9.7012,3207.4,3207.3,1.29585658]
[1765434781056,9.7012,3207.4,3207.3,1.28585658]
[1765434781455,6.3044,3207.2,3207.1,1.13997658]
[1765434781654,6.3044,3207.1,3207.0,0.15589]
[1765434781952,6.3044,3206.7,3206.6,0.15591]
[1765434782358,6.3044,3206.6,3206.5,1.13997658]
[1765434782554,6.3044,3206.2,3206.1,9.01873257]
[1765434782957,6.3044,3206.2,3206.1,10.15870915]
[1765434783566,6.3044,3206.2,3206.1,13.40000915]
[1765434783765,6.3044,3206.2,3206.1,4.54189531]
[1765434783966,6.3044,3206.2,3206.1,1.30059531]
[1765434784263,3.2078,3206.4,3206.1,7.52115531]
[1765434784464,9.5122,3206.8,3206.7,0.1559]
[1765434785769,9.5122,3206.8,3206.1,0.00467873]
[1765434785964,6.3044,3206.2,3206.1,6.53711873]
[1765434786170,3.1669,3206.2,3206.1,6.53711873]
[1765434786368,6.3044,3206.2,3206.1,3.40191873]
[1765434786774,6.3044,3206.2,3206.1,0.16061873]
[1765434788674,6.3044,3206.2,3205.1,3.48293046]
[1765434788973,6.3044,3205.2,3205.1,9.74028]
[1765434789169,6.30699765,3205.2,3205.1,9.74028]
[1765434789675,6.30699765,3205.2,3205.1,6.60508]
[1765434789867,6.30699765,3205.2,3205.1,3.36378]
[1765434790272,0.00259765,3205.2,3205.1,9.74028]
[1765434791080,2.99189765,3205.2,3205.1,9.73478]
[1765434791282,0.00259765,3205.2,3205.1,9.73478]
[1765434793684,0.00467873,3205.5,3205.4,6.38687]
[1765434793887,0.00467873,3205.5,3205.4,8.02936443]
[1765434794687,7.983775,3205.5,3205.4,8.03192127]
[1765434794886,7.983775,3205.5,3205.4,6.38942684]
[1765434795389,1.773075,3205.5,3205.4,6.38942684]
[1765434796086,7.983775,3205.5,3205.4,3.25972684]
[1765434796683,7.983775,3205.5,3205.4,0.15852684]
[1765434798284,7.983775,3205.5,3205.4,3.25972684]
[1765434799091,7.983775,3205.5,3205.4,0.15852684]
[1765434801485,7.983775,3205.5,3205.4,3.25972684]
[1765434801793,7.983775,3205.5,3205.4,0.15852684]
[1765434804092,4.762375,3205.5,3205.4,6.38942684]
[1765434804293,7.983775,3205.5,3205.4,6.38942684]
[1765434805091,7.983775,3205.5,3205.4,0.15852684]
[1765434806690,7.983775,3205.5,3205.4,1.29996812]
[1765434807493,7.983775,3205.5,3205.4,0.15852684]
[1765434810491,7.983775,3205.5,3205.4,3.22572684]
[1765434810693,4.762375,3205.5,3205.4,6.20142684]
[1765434810995,7.810175,3205.5,3205.4,6.20142684]
[1765434811697,4.762375,3205.5,3205.4,6.20142684]
[1765434811898,7.810175,3205.5,3205.4,6.20142684]
[1765434812500,4.762375,3205.5,3205.4,6.20142684]
[1765434812895,7.810175,3205.5,3205.4,3.22572684]
[1765434813094,7.810175,3205.5,3205.4,5.91942684]
[1765434813605,4.762375,3205.5,3205.4,5.91942684]
[1765434814298,1.773075,3205.5,3205.4,5.91942684]
[1765434815203,0.008075,3205.5,3205.4,5.91942684]
[1765434815502,1.670075,3205.5,3205.4,5.91942684]
[1765434816095,4.676975,3205.5,3205.4,5.91942684]
[1765434817002,0.008075,3205.5,3205.4,5.91942684]
[1765434817497,7.9019,3206.0,3205.9,2.91984]
[1765434817698,4.8541,3206.0,3205.9,6.79673788]
[1765434817896,1.8472,3206.0,3205.9,6.79673788]
[1765434818410,4.8541,3206.0,3205.9,6.79673788]
[1765434818594,4.85735899,3206.0,3205.9,6.79673788]
[1765434818798,7.90515899,3206.0,3205.9,6.79673788]
[1765434819505,4.85735899,3206.0,3205.9,6.79673788]
[1765434820206,1.85045899,3206.0,3205.9,6.79673788]
[1765434821700,7.90515899,3206.0,3205.9,6.79673788]
[1765434821901,7.90515899,3206.0,3205.9,0.15594]
[1765434823202,7.90515899,3206.0,3205.9,5.36024]
[1765434823403,4.85735899,3206.0,3205.9,5.36024]
[1765434824005,7.90515899,3206.0,3205.9,5.36024]
[1765434824208,1.85045899,3206.0,3205.9,5.36024]
[1765434827611,4.85735899,3206.0,3205.9,5.36024]
[1765434828010,7.90515899,3206.0,3205.9,2.77274]
[1765434828413,4.85735899,3206.0,3205.9,5.21484]
[1765434828618,1.85045899,3206.0,3205.9,5.21484]
[1765434828821,4.85735899,3206.0,3205.9,5.21484]
[1765434829115,1.85045899,3206.0,3205.9,5.21484]
[1765434829314,4.85735899,3206.0,3205.9,5.21484]
[1765434829512,7.90515899,3206.0,3205.9,5.21484]
[1765434830317,4.85735899,3206.0,3205.9,5.21484]
[1765434830917,0.00325899,3206.0,3205.9,5.21484]
[1765434831719,1.66525899,3206.0,3205.9,5.21484]
[1765434832028,0.00325899,3206.0,3205.9,5.21484]
[1765434832328,0.00467873,3206.3,3206.2,4.81093]
[1765434832527,0.00467873,3206.3,3206.2,6.63911338]
[1765434832720,0.00467873,3206.3,3206.2,9.84691338]
[1765434833223,0.0081088,3206.3,3206.2,9.34691338]
[1765434833617,0.0081088,3206.3,3206.2,9.50284338]
[1765434833814,11.1097,3207.0,3206.9,4.0381]
[1765434834224,11.1097,3207.0,3206.9,0.1559]
[1765434834426,11.1097,3207.0,3206.2,5.03598338]
[1765434834926,4.6689,3206.5,3206.4,3.97952]
[1765434835226,4.6689,3206.5,3206.4,3.61942]
[1765434835825,7.7167,3206.5,3206.4,0.15592]
[1765434837629,7.7167,3206.5,3206.4,1.89582]
[1765434838030,7.7167,3206.5,3206.4,3.66472]
[1765434838324,4.6689,3206.5,3206.4,3.66472]
[1765434838518,7.7167,3206.5,3206.4,3.65472]
[1765434839025,1.85028899,3207.0,3206.9,3.4124]
[1765434839424,4.62928899,3207.0,3206.9,3.4124]
[1765434840526,1.57888899,3207.0,3206.9,3.5663]
[1765434840834,0.00308899,3207.0,3206.9,13.2383]
[1765434842028,0.00308899,3207.0,3206.9,13.2343]
[1765434842434,1.662,3207.5,3207.4,3.38667]
[1765434842730,1.662,3207.5,3207.4,3.38367]
[1765434843036,1.662,3207.5,3207.4,3.37767]
[1765434843232,7.0727,3207.5,3207.4,3.36967]
[1765434843438,7.07588644,3207.5,3207.4,3.36967]
[1765434843634,4.44418644,3207.5,3207.4,3.36167]
[1765434843829,7.07588644,3207.5,3207.4,3.35367]
[1765434844130,7.07588644,3207.5,3207.4,3.34367]
[1765434844323,7.07588644,3207.5,3207.4,1.72027]
[1765434844723,7.07588644,3207.5,3207.4,1.71227]
[1765434844932,7.07588644,3207.5,3207.4,1.70427]
[1765434845138,7.07588644,3207.5,3207.4,1.69827]
[1765434845533,7.07588644,3207.5,3207.4,1.68827]
[1765434845726,7.07588644,3207.5,3207.4,1.68027]
[1765434845931,7.07588644,3207.5,3207.4,1.6154]
[1765434846131,7.07588644,3207.5,3207.4,1.6074]
[1765434846331,7.07588644,3207.5,3207.4,1.76327]
[1765434846632,7.07588644,3207.5,3207.4,2.86642146]
[1765434846928,7.07588644,3207.5,3207.4,2.85442146]
[1765434847236,7.07588644,3207.5,3207.4,0.14787]
[1765434847435,7.07588644,3207.5,3207.4,0.13887]
[1765434847636,5.4107,3206.9,3206.8,3.2078]
[1765434847837,5.4107,3206.9,3206.8,4.47485146]
[1765434848225,5.4107,3206.9,3206.8,3.97485146]
[1765434848432,5.4107,3206.9,3206.8,5.07015146]
[1765434848633,5.4107,3206.9,3206.8,3.46885146]
[1765434848832,5.4107,3206.9,3206.8,3.46085146]
[1765434849236,5.4107,3206.9,3206.8,3.45485146]
[1765434849532,5.4107,3206.9,3206.8,3.44685146]
[1765434849732,5.4107,3206.9,3206.8,5.01615146]
[1765434849938,5.4107,3206.9,3206.8,5.00615146]
[1765434850237,5.4107,3206.9,3206.8,4.99815146]
[1765434850432,5.4107,3206.9,3206.8,4.99215146]
[1765434850633,5.4107,3206.9,3206.8,4.98415146]
[1765434850832,5.4107,3206.9,3206.8,1.26705146]
[1765434851038,5.4107,3206.9,3206.8,1.25705146]
[1765434851240,5.4107,3206.9,3206.8,0.1459]
[1765434851436,5.4107,3206.9,3206.8,0.1359]
[1765434851635,5.4107,3206.9,3206.8,0.1279]
[1765434851837,5.4107,3206.9,3206.8,0.1199]
[1765434852140,5.4107,3206.9,3206.8,0.1119]
[1765434852341,5.4107,3206.9,3206.8,0.1059]
[1765434852736,5.4107,3206.9,3206.8,0.0959]
[1765434852937,5.4107,3206.9,3206.8,1.20105146]
[1765434853241,5.4107,3206.9,3206.8,1.19305146]
[1765434853437,5.4107,3206.9,3206.8,1.18505146]
[1765434853639,5.5011,3206.4,3206.3,0.00467873]
[1765434854030,7.1611,3206.0,3205.9,4.31895146]
[1765434854236,7.1611,3206.0,3205.9,3.2078]
[1765434854539,7.1611,3206.0,3205.9,4.31895146]
[1765434854734,7.1611,3206.0,3205.7,0.02640205]
[1765434854934,7.1611,3205.5,3205.4,2.57325684]
[1765434855533,7.1611,3205.5,3205.4,5.21385684]
[1765434856036,7.1611,3205.5,3205.4,3.6844083]
[1765434856641,7.1611,3205.5,3205.4,3.8403783]
[1765434857137,7.1611,3205.5,3205.4,0.15852684]
[1765434857438,7.1611,3205.5,3205.4,1.2696783]
[1765434857639,7.1611,3205.5,3205.4,3.8403783]
[1765434858334,7.1611,3205.5,3205.4,1.2696783]
[1765434859135,7.1611,3205.5,3205.4,0.15852684]
[1765434860746,4.4028,3206.0,3205.9,5.36724]
[1765434860943,8.7089,3206.2,3206.1,2.72664]
[1765434861144,8.7089,3206.2,3206.1,5.36724]
[1765434861448,5.9661,3206.2,3206.1,4.91324]
[1765434861945,8.7089,3206.2,3206.1,4.91324]
[1765434862145,8.7089,3206.2,3206.1,2.27264]
[1765434862643,8.7089,3206.2,3206.1,2.42858]
[1765434862843,8.7089,3206.2,3206.1,0.15594]
[1765434863644,8.7089,3206.2,3206.1,2.72664]
[1765434863946,5.9661,3206.2,3206.1,5.36724]
[1765434864545,1.66318644,3207.5,3206.6,5.36721]
[1765434864546,2.7583,3206.7,3206.6,5.36721]
[1765434864854,5.5011,3206.7,3206.6,5.36721]
[1765434865450,2.7583,3206.7,3206.6,5.36721]
[1765434865648,10.3689,3207.0,3206.9,5.3672]
[1765434865849,10.3689,3207.0,3206.9,0.1559]
[1765434866451,10.3689,3207.0,3206.9,2.7266]
[1765434866951,10.3689,3207.0,3206.9,5.3672]
[1765434867154,10.3689,3207.0,3206.9,0.1559]
[1765434867755,3.2078,3207.0,3206.9,5.3672]
[1765434867948,8.7089,3207.0,3206.9,2.7266]
[1765434868144,10.3689,3207.0,3206.9,2.7266]
[1765434868653,10.3689,3207.0,3206.9,7.00870037]
[1765434868855,10.3689,3207.0,3206.9,4.36810037]
[1765434870160,10.3689,3207.0,3206.9,1.79740037]
[1765434871458,10.3689,3207.0,3206.9,4.70070037]
[1765434872249,10.3689,3207.0,3206.9,1.79740037]
[1765434873658,10.38611084,3207.0,3206.9,1.79740037]
[1765434876762,10.38611084,3207.0,3206.9,0.1559]
[1765434879261,3.22501084,3207.0,3206.9,6.0551]
[1765434879467,6.0286,3207.4,3207.3,2.9033]
[1765434879663,8.9054,3207.4,3207.3,7.69658037]
[1765434879863,5.6976,3207.4,3207.3,10.90438037]
[1765434881775,5.6976,3207.4,3207.3,6.26698]
[1765434882777,5.6976,3207.4,3207.3,3.36368]
[1765434884278,5.6976,3207.4,3207.3,9.26288]
[1765434885073,5.6976,3207.4,3207.3,6.26698]
[1765434885274,5.6976,3207.4,3207.3,3.36368]
[1765434885975,5.6976,3207.4,3207.3,6.26698]
[1765434888483,5.6976,3207.4,3207.3,3.36368]
[1765434892086,6.8808,3207.0,3206.9,3.2078]
[1765434892281,6.8808,3207.0,3206.9,3.3637]
[1765434892989,6.8808,3207.0,3206.9,6.267]
[1765434893285,6.8808,3207.0,3206.9,9.2629]
[1765434893286,5.6976,3207.0,3206.9,9.2629]
[1765434893483,2.82547873,3207.3,3207.2,6.05508]
[1765434893692,2.82547873,3207.3,3207.2,7.69658037]
[1765434894684,0.00467873,3207.3,3207.2,7.69658037]
[1765434896289,2.82547873,3207.3,3207.2,7.69658037]
[1765434897088,0.00467873,3207.3,3207.2,7.69658037]
[1765434899188,0.00467873,3207.3,3207.2,11.31582679]
[1765434901291,6.06327873,3207.3,3207.2,7.69658037]
[1765434901595,6.06327873,3207.3,3207.2,6.05508]
[1765434901893,6.06327873,3207.3,3207.2,3.05918]
[1765434902493,6.06327873,3207.3,3207.2,0.15588]
[1765434903688,6.06327873,3207.3,3207.2,3.14838]
[1765434904088,6.06327873,3207.3,3207.2,0.15588]
[1765434904291,6.06327873,3207.3,3207.2,6.27708]
[1765434904488,6.06327873,3207.3,3207.2,0.15588]
[1765434904688,0.00467873,3207.3,3207.2,6.27708]
[1765434904888,2.94447873,3207.3,3207.2,6.27708]
[1765434905288,6.06327873,3207.3,3207.2,6.27708]
[1765434907193,0.00467873,3207.3,3207.2,6.27708]
[1765434907398,0.00318644,3207.5,3207.4,6.27707]
[1765434907592,3.2078,3207.8,3207.7,7.91856037]
[1765434908590,3.21015762,3207.8,3207.7,7.92160233]
[1765434909101,9.26875762,3207.8,3207.7,3.15140196]
[1765434909806,3.21015762,3207.8,3207.7,7.92160233]
[1765434910503,6.14995762,3207.8,3207.7,7.92160233]
[1765434910699,3.21015762,3207.8,3207.7,7.92160233]
[1765434910904,6.14995762,3207.8,3207.7,7.92160233]
[1765434912604,9.26875762,3207.8,3207.7,7.92160233]
[1765434912795,9.26875762,3207.8,3207.7,4.79290233]
[1765434913806,9.26875762,3207.8,3207.7,7.92160233]
[1765434914601,9.26875762,3207.8,3207.7,3.15140196]
[1765434915100,3.2078,3208.2,3207.7,9.48790196]
[1765434915307,9.2664,3208.2,3208.1,6.27704]
[1765434915799,9.2664,3208.2,3208.1,3.14834]
[1765434916302,9.26997547,3208.2,3208.1,3.14834]
[1765434918410,9.26997547,3208.2,3208.1,0.15584]
[1765434922311,6.0586,3207.8,3207.7,0.00304196]
[1765434922611,9.2664,3207.8,3207.7,0.15890196]
[1765434925610,6.0586,3207.1,3207.0,8.11569]
[1765434926008,2.9398,3207.1,3207.0,8.37724678]
[1765434926312,9.2664,3207.8,3207.7,6.27706]
[1765434926508,9.2664,3207.8,3207.7,6.27966632]
[1765434926509,6.1476,3207.8,3207.7,6.27966632]
[1765434926908,6.06217547,3208.2,3208.1,3.14834]
[1765434927110,6.06217547,3208.2,3208.1,0.15584]
[1765434928611,6.06217547,3208.2,3208.1,3.14834]
[1765434929011,6.06217547,3208.2,3208.1,0.15584]
[1765434931311,6.06217547,3208.2,3208.1,5.67574]
[1765434931510,3.2078,3208.3,3208.2,5.67573]
[1765434931713,8.6457,3208.8,3208.7,0.15581]
[1765434932713,8.64868755,3208.8,3208.7,0.15581]
[1765434934221,8.64868755,3208.8,3208.7,2.88771]
[1765434934415,8.64868755,3208.8,3208.7,0.15581]
[1765434936526,14.64868755,3208.8,3208.7,0.15581]
[1765434936929,8.64868755,3208.8,3208.7,0.15581]
[1765434940830,3.21078755,3208.8,3208.7,5.56671]
[1765434941024,8.81828755,3208.8,3208.7,2.88771]
[1765434941229,8.81828755,3208.8,3208.7,5.56671]
[1765434942528,3.2078,3209.2,3209.1,0.15579]
[1765434942724,5.9999,3209.2,3209.1,5.56669]
[1765434943029,8.8153,3209.2,3209.1,5.56669]
[1765434943630,8.81764292,3209.2,3209.1,5.56669]
[1765434944622,6.00224292,3209.2,3209.1,5.56669]
[1765434945222,3.21014292,3209.2,3209.1,5.56669]
[1765434946531,2.7921,3209.6,3209.5,7.24727]
[1765434946723,5.6075,3209.6,3209.5,7.24727]
[1765434947125,8.8153,3209.6,3209.5,0.15577]
[1765434947429,8.81784493,3209.6,3209.5,0.15577]
[1765434950331,3.21034493,3209.6,3209.5,2.88767]
[1765434950531,8.81784493,3209.6,3209.5,2.88767]
[1765434950832,8.81784493,3209.6,3209.5,0.15577]
[1765434958534,8.81784493,3209.6,3208.5,4.8884]
[1765434958535,2.3693,3208.8,3208.5,4.8884]
[1765434958736,4.7942,3208.6,3208.5,10.0217]
[1765434959039,2.4249,3208.6,3208.5,10.0217]
[1765434959636,2.4249,3208.6,3208.5,10.17752]
[1765434960536,4.7942,3208.6,3208.5,5.88702]
[1765434960729,4.7942,3208.6,3208.5,2.67922]
[1765434960927,4.7942,3208.6,3208.5,0.15582]
[1765434961529,4.7942,3208.6,3208.5,2.67922]
[1765434961730,4.7942,3208.6,3208.5,0.15582]
[1765434962828,8.002,3208.6,3208.5,0.15582]
[1765434963029,8.002,3208.6,3208.5,0.12603198]
[1765434963636,6.2954,3208.5,3208.4,0.00467873]
[1765434965543,4.7942,3208.3,3208.2,0.15583]
[1765434969645,2.4249,3208.3,3208.2,5.28913]
[1765434969949,8.00667873,3208.6,3208.5,2.67922]
[1765434970345,8.00667873,3208.6,3208.5,0.15582]
[1765434971041,8.00667873,3208.6,3208.5,2.67922]
[1765434971446,8.00667873,3208.6,3208.5,5.28912]
[1765434971650,8.00667873,3208.6,3208.5,2.67922]
[1765434972144,3.21247873,3208.6,3208.5,6.72092]
[1765434974346,8.00667873,3208.6,3208.5,6.72092]
[1765434975256,8.00667873,3208.6,3208.5,5.28912]
[1765434975854,8.00667873,3208.6,3208.5,6.72092]
[1765434977458,8.00667873,3208.6,3208.5,5.28912]
[1765434977656,8.00667873,3208.6,3208.5,2.67922]
[1765434977852,0.00467873,3208.6,3208.5,9.92872]
[1765434978452,3.2078,3209.0,3208.9,5.2891]
[1765434978646,3.2078,3209.0,3208.9,6.39977654]
[1765434978847,3.2078,3209.4,3209.0,1.4318]
[1765434979052,5.6327,3209.4,3209.3,6.24397654]
[1765434979347,5.6327,3209.4,3209.3,6.39975654]
[1765434979757,3.2078,3209.4,3209.3,6.39975654]
[1765434979959,8.0004,3209.4,3209.3,6.39975654]
[1765434980155,8.0004,3209.4,3209.3,3.78985654]
[1765434980356,8.0004,3209.4,3209.3,0.15578]
[1765434980854,4.7926,3208.6,3208.5,2.3937]
[1765434981059,8.0004,3208.9,3208.8,4.8559]
[1765434981260,5.5761,3208.9,3208.8,4.8559]
[1765434981457,8.0004,3208.9,3208.8,4.8559]
[1765434983363,5.5761,3208.9,3208.8,4.8559]
[1765434983564,8.0004,3208.9,3208.8,4.8559]
[1765434983759,8.0004,3208.9,3208.8,2.5495]
[1765434984860,3.2078,3208.9,3208.8,4.8559]
[1765434985065,8.0004,3208.9,3208.8,4.8559]
[1765434985564,3.2078,3208.9,3208.8,4.8559]
[1765434985762,4.6232,3210.5,3209.3,2.3064]
[1765434985763,8.0004,3209.4,3209.3,2.3064]
[1765434985959,8.0004,3209.4,3209.3,4.85588]
[1765434987370,3.2078,3209.8,3209.5,6.19577]
[1765434987567,2.37084493,3209.6,3209.5,6.19577]
[1765434988368,0.00254493,3209.6,3209.5,6.19577]
[1765434988671,2.32664493,3209.6,3209.5,6.19577]
[1765434988870,0.00254493,3209.6,3209.5,6.19577]
[1765434989079,4.64144493,3209.6,3209.5,6.19577]
[1765434989975,0.00254493,3209.6,3209.5,6.19577]
[1765434990178,2.32664493,3209.6,3209.5,6.19577]
[1765434990365,0.00254493,3209.6,3209.5,6.19577]
[1765434991778,4.64144493,3209.6,3209.5,6.19577]
[1765434992478,2.32664493,3209.6,3209.5,6.19577]
[1765434992975,0.00254493,3209.6,3209.5,6.19577]
[1765434993575,7.8467,3210.2,3210.1,4.78914]
[1765434993776,7.8467,3210.2,3210.1,2.51104]
[1765434994078,7.8467,3210.2,3210.1,4.78914]
[1765434994577,7.84945755,3210.2,3210.1,4.79250234]
[1765434994973,7.84945755,3210.2,3210.1,2.51440234]
[1765434995172,7.84945755,3210.2,3210.1,0.15910234]
[1765434997982,4.6389,3209.9,3209.8,0.00467873]
[1765434998382,4.6389,3209.9,3209.8,0.16043873]
[1765434998887,4.6389,3209.9,3209.8,0.16300576]
[1765435006292,4.6389,3209.9,3209.8,2.51830576]
[1765435006790,4.6389,3209.9,3209.8,0.16300576]
[1765435006984,2.3241,3209.9,3209.8,4.79640576]
[1765435007184,4.6389,3209.9,3209.8,4.79640576]
[1765435008398,2.3241,3209.9,3209.8,4.79640576]
[1765435009196,5.53465755,3210.2,3210.1,4.78914]
[1765435009491,3.21055755,3210.2,3210.1,5.9275862]
[1765435009691,5.53465755,3210.2,3210.1,5.9275862]
[1765435010587,2.87134755,3210.2,3210.1,5.9275862]
[1765435010790,7.8467,3211.0,3210.5,1.3348]
[1765435010986,2.3241,3210.6,3210.5,6.12392]
[1765435011180,4.6389,3210.6,3210.5,3.84582]
[1765435011381,4.6389,3210.6,3210.5,2.51102]
[1765435011894,4.64245481,3210.6,3210.5,2.51102]
[1765435012095,4.64245481,3210.6,3210.5,3.6494662]
[1765435012283,4.64245481,3210.6,3210.5,0.15572]
[1765435015994,7.85025481,3210.6,3210.5,1.2941662]
[1765435017497,7.85025481,3210.6,3210.5,0.15572]
[1765435018492,4.5481,3209.9,3209.8,0.16300576]
[1765435018797,4.5481,3209.9,3209.8,2.43100576]
[1765435020092,4.5481,3209.9,3209.8,0.16300576]
[1765435021395,3.2078,3210.7,3210.1,4.4027]
[1765435021589,4.55165481,3210.6,3210.5,1.1384462]
[1765435021890,4.5481,3210.4,3210.3,0.15573]
[1765435022197,4.5481,3209.9,3209.8,1.14569196]
[1765435022394,4.5481,3209.9,3209.8,3.41369196]
[1765435022895,4.5481,3209.9,3209.8,5.54839196]
[1765435023593,4.5481,3209.9,3209.8,5.70415196]
[1765435024896,4.5481,3209.9,3209.8,3.56945196]
[1765435025200,4.5481,3209.9,3209.8,0.16300576]
[1765435025499,2.9232,3209.1,3209.0,5.7426]
[1765435025697,6.131,3209.1,3209.0,5.7426]
[1765435025892,6.131,3209.1,3209.0,1.49569]
[1765435026096,6.131,3209.1,3209.0,4.9021362]
[1765435026303,6.131,3209.1,3209.0,4.90516988]
[1765435026898,6.131,3209.1,3209.0,5.90142368]
[1765435027093,6.131,3209.1,3209.0,1.49872368]
[1765435027595,6.131,3209.1,3209.0,3.76672368]
[1765435027997,4.6694,3209.1,3209.0,5.90142368]
[1765435028703,6.5999,3209.1,3209.0,5.90142368]
[1765435029503,6.5999,3209.1,3209.0,1.49872368]
[1765435029906,6.5999,3209.1,3209.0,3.76672368]
[1765435031106,6.5999,3209.1,3209.0,5.90142368]
[1765435031309,3.2078,3209.1,3209.0,5.90142368]
[1765435032002,6.8766,3209.1,3209.0,5.90142368]
[1765435032303,5.0422,3209.1,3209.0,5.90142368]
[1765435032505,3.2078,3209.1,3209.0,5.90142368]